Cogmind - Beta 13 @@@ ROGUE MODE // 2024.04.19 @ 18:22:28 Player: Prominous Vale Result: Destroyed by G-47 Trooper with Particle Gun Performance ------------- Evolutions (2) 1000 Regions Visited (3) 600 Robots Destroyed (30) 150 Value Destroyed (667) 667 Prototype IDs (2) 40 Alien Tech Used (0) 0 Bonus (0) 0 TOTAL SCORE: 2457 Bonus ------- None Cogmind --------- Core Integrity 0/550 Matter 220/300 Energy 100/100 System Corruption 0% Temperature Cool (9) Movement Core (450) Ox8 Location -8/Materials Parts ------- > --- POWER (1) -------- (None) > --- PROPULSION (4) --- (None) > --- UTILITY (3) ------ Large Storage Unit > --- WEAPON (3) ------- Plasma Cannon > --- INVENTORY (15) --- Hardened Medium Armor Plating EM Shotgun Pulse Rifle Cooled Pulse Rifle Faulty Advanced Beam Cannon Plasma Cannon Mini Grenade Launcher Remote Datajack Peak State ------------ > --- POWER ------------ Light Nuclear Core > --- PROPULSION ------- Aluminum Leg Aluminum Leg Aluminum Leg VSS Leg > --- UTILITY ---------- Large Storage Unit Hardened Medium Armor Plating Recalibrator > --- WEAPON ----------- Beam Rifle Beam Rifle Heavy Particle Cannon > --- INVENTORY -------- Ion Engine Aluminum Leg Hardened Medium Armor Plating Hardened Medium Armor Plating Hardened Medium Armor Plating EM Shotgun Pulse Rifle Cooled Pulse Rifle Advanced Beam Cannon Plasma Cannon Plasma Cannon Plasma Cannon Plasma Cannon Mini Grenade Launcher Remote Datajack [Rating: 28] Favorites ----------- Power Ion Engine Engine Ion Engine Power Core Light Nuclear Core Propulsion Aluminum Leg Leg Aluminum Leg Utility Large Storage Unit Device Seismic Detector Storage Large Storage Unit Protection Hardened Medium Armor Plating Weapon Beam Rifle Energy Gun Beam Rifle Energy Cannon Heavy Particle Cannon Ballistic Gun Light Assault Rifle Build | -11 -10 -9 -8 ------- Run | Yrd Mat Mat Mat Slots Evolved 4 | . . 2 2 Power . | . . . . Propulsion 2 | . . 2 . Utility 1 | . . . 1 Weapon 1 | . . . 1 Parts Attached 37 | 6 7 11 13 Power 4 | 1 . 1 2 Engine 3 | 1 . 1 1 Core 1 | . . . 1 Reactor . | . . . . Propulsion 11 | 2 2 5 2 Treads . | . . . . Leg 11 | 2 2 5 2 Wheel . | . . . . Hover . | . . . . Flight . | . . . . Utility 8 | 1 1 2 4 Device 3 | . 1 1 1 Storage 2 | 1 . 1 . Processor . | . . . . Hackware . | . . . . Protection 3 | . . . 3 Artifact . | . . . . Weapon 14 | 2 4 3 5 Energy Gun 3 | . . 2 1 Energy Cannon 6 | . 2 . 4 Ballistic Gun 5 | 2 2 1 . Ballistic Cannon . | . . . . Launcher . | . . . . Special Weapon . | . . . . Impact Weapon . | . . . . Slashing Weapon . | . . . . Piercing Weapon . | . . . . Special Melee Weapon . | . . . . Unidentified Prototypes . | . . . . Parts Lost 22 | . 2 5 15 Power 2 | . . 1 1 Propulsion 9 | . 1 3 5 Utility 5 | . . 1 4 Weapon 6 | . 1 . 5 Highest Loss Streak 10 | . 2 4 10 To Critical Strikes . | . . . . Average Slot Usage (%) 88 | . 96 86 84 Engine 9 | . 14 10 6 Leg 29 | . 27 33 27 Device 9 | . 13 9 7 Storage 10 | . 14 11 9 Protection 3 | . . . 8 Energy Gun 9 | . . 11 13 Energy Cannon 5 | . 9 . 8 Ballistic Gun 9 | . 17 11 2 Naked Turns . | . . . . Heaviest Build 57 | 13 16 32 57 Greatest Support 42 | 20 20 40 42 Greatest Overweight (x) 18 | . 1 2 18 Average Overweight (x) . | . . . 1 Largest Inventory Capacity 15 | 8 8 15 15 Average Capacity 12 | 5 8 14 15 Most Carried 15 | 4 8 15 15 Average Carried 10 | 1 6 11 13 Final Capacity 15 | 8 8 15 15 Final Carried 15 | 3 8 15 8 Class Distribution -------------------- 37% | Mutant 32% | Scavenger-Mutant 25% | Scavenger-Tank 4% | Tank Dominant Class ---------------- Mutant | -10/Materials Scavenger-Mutant | -9/Materials Scavenger-Tank | -8/Materials Resources | -11 -10 -9 -8 ----------- Run | Yrd Mat Mat Mat Matter Collected 610 | 276 115 195 24 Remotely . | . . . . Salvage Created 1204 | 110 440 406 248 Parts 51 | 5 26 16 4 Haulers Intercepted 1 | . 1 . . Recyclers Shooed 1 | 1 . . . Parts Field Recycled . | . . . . Retrieved Matter . | . . . . Parts Self-Destructed . | . . . . Prevented . | . . . . Kills | -11 -10 -9 -8 ------- Run | Yrd Mat Mat Mat Combat Hostiles Destroyed 24 | . 11 9 4 Guns 12 | . 2 9 1 Cannons 10 | . 8 . 2 Classes Destroyed 6 | 2 3 1 . Tunneler 1 | 1 . . . Hauler 1 | . 1 . . Recycler 4 | 1 1 1 1 Swarmer 11 | . 6 4 1 Grunt 10 | . 5 4 1 Sentry 3 | . . 1 2 Best Kill Streak 6 | 2 6 3 2 Combat Bots Only 5 | . 5 3 1 Max Kills in Single Turn 2 | 1 2 2 1 Gunslinging . | . . . . Exploded . | . . . . Melee . | . . . . Uniques/NPCs Destroyed . | . . . . Combat | -11 -10 -9 -8 -------- Run | Yrd Mat Mat Mat Hostile Shots Fired 299 | . 76 47 176 Missed 73 | . 21 12 40 Damage Taken 3358 | . 534 398 2426 Core 671 | . 76 41 554 Absorbed by Shields . | . . . . Core Remaining (%) 86 | 100 69 89 . Volleys Fired 92 | 4 37 32 19 Largest 3 | 2 2 2 3 Hottest 240 | 40 80 79 240 Shots Fired 188 | 8 67 63 50 Gun 139 | 8 39 63 29 Cannon 49 | . 28 . 21 Launcher . | . . . . Special . | . . . . Kinetic 80 | 8 39 32 1 Thermal 108 | . 28 31 49 Explosive . | . . . . Electromagnetic . | . . . . Robot Hit Streak 24 | 4 5 21 24 Robot Miss Streak 8 | 1 8 3 3 Penetration Max . | . . . . Secondary Targets . | . . . . Shots Hit Robots 108 | 6 30 41 31 Core Hits 49 | 4 17 19 9 Critical Kills 1 | . 1 . . Critical Parts Destroyed . | . . . . Critical Strikes 6 | . 1 1 4 Burn 5 | . . 1 4 Meltdown 1 | . 1 . . Melee Attacks . | . . . . Impact . | . . . . Slashing . | . . . . Piercing . | . . . . Sneak Attacks . | . . . . Combat Hostiles . | . . . . Follow-up Attacks . | . . . . Damage Inflicted 1735 | 62 470 591 612 Guns 1115 | 62 205 586 262 Cannons 615 | . 265 . 350 Explosions . | . . . . Melee . | . . . . Ramming 5 | . . 5 . Kinetic 566 | 62 205 282 17 Thermal 1164 | . 265 304 595 Explosive . | . . . . Electromagnetic . | . . . . Impact . | . . . . Slashing . | . . . . Piercing . | . . . . Highest Corruption . | . . . . Average Corruption . | . . . . Corruption Purged . | . . . . Corruption Blocked . | . . . . Overload Shots . | . . . . Overflow Damage . | . . . . Projectiles . | . . . . Explosions . | . . . . Melee . | . . . . Knockbacks . | . . . . Impact . | . . . . Kinetic . | . . . . Secondary . | . . . . Self-Inflicted Damage . | . . . . Shots . | . . . . Rammed . | . . . . Targets Rammed 3 | . . 3 . Kicked 3 | . . 3 . Crushed . | . . . . Highest Temperature 706 | . 217 204 706 Average Temperature 123 | . 51 71 191 Received Heat Transfer 1335 | . 186 141 1008 Effects 7 | . . . 7 Shutdowns 1 | . . . 1 Energy Bleed 3 | . . . 3 Matter Decay 1 | . . . 1 Short Circuit 2 | . . . 2 Siege Activations . | . . . . Robots Corrupted . | . . . . Combat Hostiles . | . . . . Parts Fried . | . . . . Impact Corruptions . | . . . . Robots Melted 2 | . 1 . 1 Combat Hostiles 2 | . 1 . 1 Parts Melted 7 | . 2 1 4 Heat Transferred 2893 | . 555 817 1521 Parts Sabotaged . | . . . . Parts Stolen . | . . . . Parts Stripped . | . . . . Power Chain Reactions . | . . . . Alert | -11 -10 -9 -8 ------- Run | Yrd Mat Mat Mat Peak Influence 359 | 10 333 359 254 Initial 140 | . 6 140 73 Average 166 | 6 178 250 112 Maximum Alert Level 1 | . 1 1 1 Low Security (%) 57 | 100 52 21 85 Level 1 42 | . 47 78 14 Level 2 . | . . . . Level 3 . | . . . . Level 4 . | . . . . Level 5 . | . . . . High Security . | . . . . Max Security . | . . . . Squads Dispatched 5 | . 2 1 2 Investigation . | . . . . Extermination . | . . . . Reinforcement 5 | . 2 1 2 Assault . | . . . . Garrison . | . . . . Intercept . | . . . . Searches Triggered . | . . . . Construction Impeded . | . . . . Haulers Reinforced . | . . . . Active Scanning Responses . | . . . . Cargo Convoy Interrupts . | . . . . Stealth | -11 -10 -9 -8 --------- Run | Yrd Mat Mat Mat Distress Signals 3 | . . 3 . Communications Jammed . | . . . . Distress Signals . | . . . . Times Spotted 44 | . 12 18 14 Peak Tracking Total 5 | . 4 5 5 Tactical Retreats 3 | . . 1 2 Traps | -11 -10 -9 -8 ------- Run | Yrd Mat Mat Mat Traps Triggered 1 | . 1 . . Indirectly . | . . . . Trap Hack Attempts . | . . . . Triggered . | . . . . Disarmed 4 | . 4 . . Reprogrammed . | . . . . Reused . | . . . . Traps Extracted . | . . . . Installed . | . . . . Triggered . | . . . . Machines | -11 -10 -9 -8 ---------- Run | Yrd Mat Mat Mat Machines Disabled 1 | . 1 . . Max in Single Turn 1 | . 1 . . Machines Repaired . | . . . . Machines Dismantled . | . . . . Machines Sabotaged . | . . . . Overloaded Fab Kills . | . . . . Hacking | -11 -10 -9 -8 --------- Run | Yrd Mat Mat Mat Machines Accessed 7 | . 3 3 1 Terminals 7 | . 3 3 1 Fabricators . | . . . . Repair Stations . | . . . . Recycling Units . | . . . . Scanalyzers . | . . . . Garrison Access . | . . . . Total Hacks 26 | . 11 8 7 Successful 13 | . 6 3 4 Failed 13 | . 5 5 3 Catastrophic 1 | . 1 . . Database Lockouts . | . . . . Manual . | . . . . Terminals 26 | . 11 8 7 Fabricators . | . . . . Repair Stations . | . . . . Recycling Units . | . . . . Scanalyzers . | . . . . Garrison Access . | . . . . Terminal Hacks 13 | . 6 3 4 Record 1 | . . . 1 Robot Analysis 1 | . . 1 . Prototype ID Bank 1 | . 1 . . Branch Access Points 1 | . . 1 . Alert Level 2 | . 1 1 . Locate Traps 2 | . 1 . 1 Disarm Traps 1 | . 1 . . Patrol Status 1 | . . . 1 Reinforcement Status 1 | . 1 . . Hauler Manifests 1 | . 1 . . Zone Layout 1 | . . . 1 Fabricator Hacks . | . . . . Repair Station Hacks . | . . . . Recycling Unit Hacks . | . . . . Scanalyzer . | . . . . Garrison Access Hacks . | . . . . Unauthorized Hacks . | . . . . Terminals . | . . . . Fabricators . | . . . . Repair Stations . | . . . . Recycling Units . | . . . . Scanalyzers . | . . . . Garrison Access . | . . . . Data Cores Recovered . | . . . . Used . | . . . . Hacking Detections 7 | . 3 3 1 Full Trace Events 1 | . 1 . . Feedback Events . | . . . . Feedback Blocked . | . . . . Robot Schematics Acquired . | . . . . Robots Built . | . . . . Authchips . | . . . . Time . | . . . . Total Robot Build Rating . | . . . . Part Schematics Acquired . | . . . . Parts Built . | . . . . Authchips . | . . . . Time . | . . . . Total Part Build Rating . | . . . . Parts Repaired . | . . . . Time . | . . . . Parts Recycled . | . . . . Recycled Matter . | . . . . Retrieved Matter . | . . . . Retrieved Components . | . . . . Parts Scanalyzed . | . . . . Part Schematics Acquired . | . . . . Parts Damaged . | . . . . Bothacking | -11 -10 -9 -8 ------------ Run | Yrd Mat Mat Mat Used RIF Installer . | . . . . Robots Hacked . | . . . . Non-combat . | . . . . Combat . | . . . . Robot Hacks Applied . | . . . . Relay Couplers Released . | . . . . Fabnet Peak Effective % . | . . . . Robots Rewired . | . . . . Allies Hacked . | . . . . Hacks Repelled . | . . . . Allies | -11 -10 -9 -8 -------- Run | Yrd Mat Mat Mat Total Allies . | . . . . Largest Group . | . . . . Highest-Rated Group . | . . . . Highest-Rated Ally . | . . . . Total Orders . | . . . . Ally Attacks . | . . . . Total Damage . | . . . . Kills . | . . . . Allies Corrupted . | . . . . Allies Melted . | . . . . Intel | -11 -10 -9 -8 ------- Run | Yrd Mat Mat Mat Robot Analysis Total 1 | . . 1 . Derelict Logs Recovered . | . . . . Drone Launches . | . . . . Drone Recoveries . | . . . . Exploration | -11 -10 -9 -8 ------------- Run | Yrd Mat Mat Mat Turns Passed 1284 | 83 293 432 476 Spaces Moved 593 | 53 139 230 171 Core 18 | 8 . . 10 Treads . | . . . . Legs 575 | 45 139 230 161 Wheels . | . . . . Hover . | . . . . Flight . | . . . . Fastest Speed 50 | 50 120 120 112 Average Speed 147 | 109 121 125 209 Slowest Speed 950 | 120 190 260 950 Overloaded Moves . | . . . . Propulsion Burnouts . | . . . . Robots Hopped . | . . . . Cave-ins Triggered . | . . . . Exploration Rate (%) 19 | 3 32 23 19 Regions Visited 3 Branch Regions . Pre-discovered Areas . | . . . . Known Exits Taken . | . . . . Unknown Exits Taken 3 | 1 1 1 . Scrap Searched . | . . . . Spaces Dug . | . . . . Terrain Destroyed 5 | . . . 5 Melee . | . . . . Projectile 5 | . . . 5 AOE . | . . . . Terrain Rammed . | . . . . Walls Destroyed . | . . . . Machines Disabled . | . . . . Actions | -11 -10 -9 -8 --------- Run | Yrd Mat Mat Mat Total 834 | 71 197 310 256 Wait 40 | . 3 10 27 Move 590 | 52 138 229 171 Hop . | . . . . Pick Up 50 | 9 10 19 12 Fast Attach 8 | . 3 2 3 Attach 23 | 6 3 6 8 Detach . | . . . . Swap 6 | . 1 3 2 Drop 22 | . 2 6 14 Fire 92 | 4 37 32 19 Melee . | . . . . Ram . | . . . . Kick 3 | . . 3 . Crush . | . . . . Escape Stasis . | . . . . Rewire . | . . . . Trap . | . . . . Miscellaneous . | . . . . Route ------- -11/Scrapyard -10/Materials -9/Materials (discovered 2 exits: *Mat / Min) -8/Materials History --------- Turn | Location | Event 4 | -11/Scrapyard | Discovered new exit (range 16) 84 | -11/Scrapyard | Entered Materials 300 | -10/Materials | Build established: Mutant 362 | -10/Materials | Discovered new exit (range 13) 377 | -10/Materials | Entered another Materials area 377 | -9/Materials | Evolved 2 slots: Propulsion x2 661 | -9/Materials | Lost 4 parts (1p2n1u) 698 | -9/Materials | Identified exit to Mines 741 | -9/Materials | Discovered new exit (range 5) 809 | -9/Materials | Entered another Materials area 809 | -8/Materials | Evolved 2 slots: Utility x1, Weapon x1 1102 | -8/Materials | Build established: Scavenger-Tank 1226 | -8/Materials | Core integrity fell below 50% 1250 | -8/Materials | Lost 10 parts (1p4n2u3w) 1279 | -8/Materials | Core integrity fell below 20% 1285 | -8/Materials | Destroyed by G-47 Trooper with Particle Gun Last Messages --------------- M-13 Machinist fits Backup Power I on G-47 Trooper. G-47 Trooper heat damages Particle Gun, Broken Aluminum Leg, Aluminum Leg. M-13 Machinist repairs Particle Gun. M-13 Machinist repairs Broken Aluminum Leg. M-13 Machinist destroyed. U-05 Engineer builds a Wall. Aluminum Leg destroyed. R-06 Scavenger collects Wheel. Critical hit (Burn: +37). Plasma Cannon destroyed. Hrd. Medium Armor Plating destroyed. Critical hit (Burn: +37). Hrd. Medium Armor Plating destroyed. Knocked back. G-47 Trooper suffers critical hit (Blast). G-47 Trooper destroyed. U-05 Engineer builds a Wall. Plasma Cannon destroyed. Map ----- +----------------------------------------------------+ | ????????????????????????????????????????????? | | ????????????????????????????????????????????? | | ????????????????????????????????????????????? | | ????????????????????????????????????????????? | | ????????????????????????????????????????????? | | ????????????????????????????????????????????? | | ????????????????????????????????????????????? | | ????????????????????????????????????????????? | | ????????????????????????????????????????????? | | ????????????????????????????????????????????? | | ????????????????????????????????????????????? | | ????????????????????????????????????????????? | | ????????????????????????????????????????????? | | ????????????????????????????????????????????? | | ????????????????????????????????????????????? | | ????????????????????????????????????????????? | | ???????????????????? ???????????????????????? | | ???????????????????? ???????????????????????? | | ???????????????????# ???????????????????????? | | ???????????????????# ???????????????????????? | | ???????????????????# #??????????????????????? | | ???????????????????# #??????????????????????? | | ???????????????????# #??????????????????????? | | ???????????????????# #?########?????????????? | | ?????????????????### ### % #?????????????? | | ?????????????????# # @%g #?????????????? | | ???????????????### %=g" #?????????????? | | ???????? / HY*%""" #?????????????? | | ??#??????? ### % # """" #?????????????? | | ??# ?###?###?????# # #?????????????? | | ??# ## ############ ###########???????????? | | ??#!#% !=/ %# %# #???????????? | | ### #= %/[ % """ # # """ """ #???????????? | | % /=% /= """ + + """ """?????????????? | | +#### ! """ # # """ ""??????????????? | | ????# % % % * # # ?????????????? | | ????# % # # ????????????? | | ????############### # #???????????? | | ??????###??????##?# # ! #???????????? | | ??????????????????# ###########???????????? | | ??????????????????# #?????????????????????? | | ??????????????????# #?????????????????????? | | ??????????????????# #????########?????????? | | ??????????????????# #????# !!!!#?????????? | | ??????????????????# #????# !/!!#?????????? | | ??????????????????# #????# [][ #?????????? | | ??????????????????# #????#### #?????????? | | ??????##+########## #???????# #?????????? | | ?????# #???????# #?????????? | | ????? ####????# #?????????? | +----------------------------------------------------+ Best States ------------- Heat Dissipation 45 Energy Generation 14 Energy Capacity 265 Matter Stores 300 Matter Capacity 300 Sight Range 16 Terrain Scan Density 10 Armor Coverage 450 Evasion (%) 55 Item Schematics ----------------- None Robot Schematics ------------------ None Fabricated ------------ Nothing Alien Tech Used ----------------- None Achievements -------------- None Challenges ------------ None Game ------ Seed HellfireTransmissionSystem Manual? 0 Play Time 00:24:25 Cumulative 6.0 hours Start 2024.04.19 @ 12:25:51 End 2024.04.19 @ 18:22:28 Sessions 6 Manual Loads 0 Difficulty Rogue Special Mode None Game No. 11 Rogue 11 Adventurer 0 Explorer 0 Win Type - Total 0 Types 0/0/0/0/0/0/0/0/0 Lore% 3 Gallery% 11 Achievement% 10 Wizard Run 0 Options --------- Layout 1 ASCII 0 Keyboard 0 Movement Mouse Keybinds 0 Fullscreen 1 Font 24/Smallcaps Map View 50x35 Zoom Use 0% Tactical HUD 0 Map Filters NONE Filters NONE Steam 1 RUN: 6433bb46-fe65-4870-8cb3-5739be122ea0